[Event "FIN-ch Seniors 50 2020"]
[Site "Helsinki"]
[Date "2020.09.25"]
[Round "3.3"]
[White "Salmi, Ilkka"]
[Black "Piho, Juha"]
[Result "0-1"]
[ECO "A36"]
[WhiteElo "1870"]
[BlackElo "1915"]
[Annotator "NA"]
[PlyCount "86"]
[EventDate "2020.09.24"]
[EventType "tourn"]
[EventCountry "FIN"]
[SourceTitle "playchess.com"]
[Source "ChessBase"]
[SourceQuality "1"]
[TimeControl "40/5400+30:1800+30"]

1. e4 {[%emt 0:00:00]} c5 {[%emt 0:02:47]} 2. c4 {[%emt 0:00:00]} Nc6 {[%emt 0:00:17]} 3. Nc3 {[%emt 0:00:13]} g6 {[%emt 0:00:22]} 4. g3 {[%emt 0:00:12]} Bg7 {[%emt 0:00:16]} 5. Bg2 {[%emt 0:00:04]} d6 {[%emt 0:00:22]} 6. Nge2 {[%emt 0:00:19]} Nf6 {[%emt 0:01:39]} 7. a3 {[%emt 0:01:20]} Ne5 {[%emt 0:02:20]} 8. d3 {[%emt 0:02:39]} Bg4 {[%emt 0:00:32]} 9. f4 {[%emt 0:00:53]} Nc6 {[%emt 0:08:02]} 10. h3 {[%emt 0:01:03]} Bd7 {[%emt 0:06:25]} 11. O-O {[%emt 0:00:10]} e6 {[%emt 0:11:29]} 12. Rb1 {[%emt 0:01:17]} O-O {[%emt 0:06:39]} 13. b4 {[%emt 0:00:36]} Nd4 {[%emt 0:06:32]} ({Black should try} 13... b6 $14) 14. bxc5 {[%emt 0:03:16]} dxc5 {[%emt 0:00:51]} 15. Nxd4 {[%emt 0:03:06]} ({But not} 15. Rxb7 $6 Bc6 $16) (15. e5 $18) 15... cxd4 {[%emt 0:00:15]} 16. Ne2 {[%emt 0:00:36]} Bc6 {[%emt 0:01:19]} 17. e5 $16 {[%emt 0:01:46]} Ne8 {[%emt 0:04:25]} 18. Bb2 {[%emt 0:01:01]} Bxg2 {[%emt 0:02:08]} 19. Kxg2 {[%emt 0:00:24]} Qd7 {[%emt 0:10:40]} 20. Bxd4 {[%emt 0:04:09]} f6 {[%emt 0:03:33]} 21. Qb3 {[%emt 0:03:00]} fxe5 {[%emt 0:01:52]} 22. fxe5 {[%emt 0:01:48]} b6 {[%emt 0:01:56]} 23. Rxf8+ {[%emt 0:02:28]} Bxf8 {[%emt 0:00:12]} 24. Rf1 {[%emt 0:03:13]} Nc7 {[%emt 0:00:48]} 25. Be3 {[%emt 0:05:24]} Rc8 {[%emt 0:04:58]} 26. d4 {[%emt 0:01:37]} b5 {[%emt 0:08:00]} 27. cxb5 {[%emt 0:06:35]} Nxb5 {[%emt 0:02:23]} 28. a4 {[%emt 0:01:20]} Nc7 {[%emt 0:02:11]} 29. Nf4 {[%emt 0:02:59]} Qc6+ {[%emt 0:02:29]} 30. Kg1 {[%emt 0:01:18]} Nd5 {[%emt 0:02:00]} 31. Nxd5 {[%emt 0:00:30]} exd5 {[%emt 0:00:08]} 32. Rc1 {[%emt 0:01:01]} Qxc1+ {[%emt 0:00:22]} 33. Bxc1 {[%emt 0:00:05]} Rxc1+ {[%emt 0:00:06]} 34. Kf2 {[%emt 0:00:37]} Rc4 {[%emt 0:00:19]} 35. Ke3 {[%emt 0:01:20]} Bb4 {[%emt 0:03:03]} 36. Kd3 {[%emt 0:00:13]} a5 {[%emt 0:00:12]} 37. Qxc4 {[%emt 0:02:12]} dxc4+ {[%emt 0:00:17]} 38. Kxc4 {[%emt 0:00:11]} Kf7 {[%emt 0:01:08]} 39. d5 {[%emt 0:00:23]} Ke7 {[%emt 0:00:21]} 40. g4 {[%emt 0:01:17]} Kd7 {[%emt 0:01:08]} 41. h4 {[%emt 0:31:18]} h5 {[%emt 0:30:18]} 42. gxh5 {[%emt 0:00:35]} gxh5 {[%emt 0:00:01]} 43. Kb5 {[%emt 0:00:34]} Bc3 {[%emt 0:00:32]} 0-1

[Event "FIN-ch Seniors 50 2020"]
[Site "Helsinki"]
[Date "2020.09.25"]
[Round "3.4"]
[White "Salimaki, Janne"]
[Black "Lyly, Seppo"]
[Result "1-0"]
[ECO "B74"]
[WhiteElo "2092"]
[BlackElo "1880"]
[Annotator "NA"]
[PlyCount "81"]
[EventDate "2020.09.24"]
[EventType "tourn"]
[EventCountry "FIN"]
[SourceTitle "playchess.com"]
[Source "ChessBase"]
[SourceQuality "1"]
[TimeControl "40/5400+30:1800+30"]

1. e4 {[%emt 1:30:30]} c5 {[%emt 1:30:30]} 2. Nf3 {[%emt 0:00:30]} d6 {[%emt 0:00:30]} 3. d4 {[%emt 0:00:30]} cxd4 {[%emt 0:00:30]} 4. Nxd4 {[%emt 0:00:30]} Nf6 {[%emt 0:00:30]} 5. Nc3 {[%emt 0:00:30]} a6 {[%emt 0:00:30]} 6. Nb3 $11 {[%emt 0:00:30]} g6 {[%emt 0:00:30]} 7. Be2 {[%emt 0:00:30]} Bg7 {[%emt 0:00:30]} 8. O-O {[%emt 0:00:30]} O-O {[%emt 0:00:30]} 9. f4 {[%emt 0:00:30]} Nc6 {[%emt 0:00:30]} 10. Be3 {[%emt 0:00:30]} b5 {[%emt 0:00:30]} 11. Bf3 {[%emt 0:00:30]} Bb7 {[%emt 0:00:30]} 12. Qd2 {[%emt 0:00:30]} Rc8 {[%emt 0:00:30]} 13. Nd5 {[%emt 0:00:30]} Nd7 {[%emt 0:00:30]} 14. c3 {[%emt 0:00:30]} e6 {[%emt 0:00:30]} 15. Nb4 {[%emt 0:00:30]} Nxb4 {[%emt 0:00:30]} 16. cxb4 {[%emt 0:00:30]} Nb6 {[%emt 0:00:30]} 17. Na5 {[%emt 0:00:30]} Nc4 {[%emt 0:00:30]} 18. Nxc4 {[%emt 0:00:30]} Rxc4 {[%emt 0:00:30]} 19. Rac1 {[%emt 0:00:30]} Qa8 {[%emt 0:00:30]} 20. Rxc4 {[%emt 0:00:30]} bxc4 {[%emt 0:00:30]} 21. Bd4 {[%emt 0:00:30]} e5 {[%emt 0:00:30]} 22. fxe5 {[%emt 0:00:30]} dxe5 {[%emt 0:00:30]} 23. Bc5 {[%emt 0:00:30]} Rd8 {[%emt 0:00:30]} 24. Qc2 {[%emt 0:00:30]} Bc6 {[%emt 0:00:30]} 25. Rf2 {[%emt 0:00:30]} Rd7 {[%emt 0:00:30]} 26. Qxc4 {[%emt 0:00:30]} Bb5 {[%emt 0:00:30]} 27. Qb3 {[%emt 0:00:30]} Rd3 {[%emt 0:00:30]} 28. Qc2 {[%emt 0:00:30]} Qd8 {[%emt 0:00:30]} 29. a4 {[%emt 0:00:30]} Bc6 {[%emt 0:00:30]} 30. Qc4 {[%emt 0:00:30]} Bxa4 {[%emt 0:00:30]} 31. Qxa6 {[%emt 0:00:30]} Bd1 {[%emt 0:00:30]} 32. Bxd1 {[%emt 0:00:30]} Rxd1+ {[%emt 0:00:30]} 33. Rf1 {[%emt 0:00:30]} Rxf1+ {[%emt 0:00:30]} 34. Kxf1 {[%emt 0:00:30]} Qd1+ {[%emt 0:00:30]} 35. Kf2 {[%emt 0:00:30]} h5 {[%emt 0:00:30]} 36. Qe2 {[%emt 0:00:30]} Qc1 {[%emt 0:00:30]} 37. Be3 {[%emt 0:00:30]} Qc6 {[%emt 0:00:30]} 38. Qd3 {[%emt 0:00:30]} Qf6+ {[%emt 0:00:30]} 39. Kg1 {[%emt 0:00:30]} Bf8 {[%emt 0:00:30]} 40. b5 {[%emt 0:00:30]} Qh4 {[%emt 0:00:30]} 41. g3 {[%emt 0:30:30]} 1-0

[Event "FIN-ch Seniors 50 2020"]
[Site "Helsinki"]
[Date "2020.09.26"]
[Round "4.2"]
[White "Piho, Juha"]
[Black "Salimaki, Janne"]
[Result "1-0"]
[ECO "B23"]
[WhiteElo "1915"]
[BlackElo "2092"]
[Annotator "ChessBase"]
[PlyCount "71"]
[EventDate "2020.09.24"]
[EventType "tourn"]
[EventCountry "FIN"]
[SourceTitle "playchess.com"]
[Source "ChessBase"]
[SourceQuality "1"]
[TimeControl "40/5400+30:1800+30"]

1. e4 {[%emt 0:01:57]} c5 {[%emt 0:00:00]} 2. Bc4 {[%emt 0:01:08]} Nc6 {[%emt 0:02:42]} 3. f4 {[%emt 0:01:37]} e6 {[%emt 0:01:46]} 4. Nc3 {[%emt 0:01:49]} Nge7 {[%emt 0:01:18]} 5. Nf3 {[%emt 0:08:40]} d5 {[%emt 0:03:12]} 6. exd5 {[%emt 0:01:29]} exd5 {[%emt 0:00:16]} 7. Be2 {[%emt 0:03:30]} Ng6 {[%emt 0:01:39]} 8. d4 {[%emt 0:03:47]} cxd4 {[%emt 0:04:55]} 9. Nb5 {[%emt 0:17:58]} Bb4+ {[%emt 0:08:08]} 10. c3 {[%emt 0:03:27]} dxc3 {[%emt 0:02:42]} 11. bxc3 {[%emt 0:00:22]} a6 {[%emt 0:05:04]} 12. Qxd5 {[%emt 0:04:53]} axb5 {[%emt 0:06:00]} 13. Qxd8+ {[%emt 0:00:16]} Kxd8 {[%emt 0:00:12]} 14. cxb4 {[%emt 0:00:17]} Nxb4 {[%emt 0:00:26]} 15. O-O {[%emt 0:01:07]} Rxa2 {[%emt 0:02:17]} 16. Rd1+ {[%emt 0:01:41]} Kc7 {[%emt 0:02:05]} 17. Rxa2 {[%emt 0:01:01]} Nxa2 {[%emt 0:00:04]} 18. Bb2 {[%emt 0:00:18]} f6 {[%emt 0:05:41]} 19. Bxb5 {[%emt 0:02:02]} Nxf4 {[%emt 0:02:28]} 20. Bc4 {[%emt 0:03:19]} Nb4 {[%emt 0:02:25]} 21. Ba3 {[%emt 0:00:45]} Nxg2 {[%emt 0:07:45]} 22. Kxg2 {[%emt 0:00:18]} Nc6 {[%emt 0:00:20]} 23. Bd6+ {[%emt 0:01:12]} Kd8 {[%emt 0:08:49]} 24. Bf8+ {[%emt 0:10:46]} Kc7 {[%emt 0:00:13]} 25. Bxg7 {[%emt 0:09:07]} Rd8 {[%emt 0:00:38]} 26. Rxd8 {[%emt 0:00:29]} Kxd8 {[%emt 0:00:35]} 27. Bxf6+ {[%emt 0:00:07]} Ke8 {[%emt 0:00:20]} 28. Nd4 {[%emt 0:03:44]} Nxd4 {[%emt 0:04:30]} 29. Bxd4 {[%emt 0:00:02]} Kf8 {[%emt 0:00:24]} 30. Kg3 {[%emt 0:00:58]} Bd7 {[%emt 0:00:29]} 31. Kf4 {[%emt 0:01:53]} b5 {[%emt 0:02:33]} 32. Bd5 {[%emt 0:00:54]} Bh3 {[%emt 0:00:31]} 33. Kg5 {[%emt 0:00:30]} b4 {[%emt 0:04:41]} 34. Kh6 {[%emt 0:01:05]} Bf5 {[%emt 0:00:19]} 35. Bc5+ {[%emt 0:00:11]} Ke8 {[%emt 0:00:21]} 36. Bxb4 {[%emt 0:00:03]} 1-0

[Event "FIN-ch Seniors 50 2020"]
[Site "Helsinki"]
[Date "2020.09.26"]
[Round "4.3"]
[White "Hamalainen, Sami"]
[Black "Salmi, Ilkka"]
[Result "1-0"]
[ECO "C54"]
[WhiteElo "2182"]
[BlackElo "1870"]
[Annotator "NA"]
[PlyCount "56"]
[EventDate "2020.09.24"]
[EventType "tourn"]
[EventCountry "FIN"]
[SourceTitle "playchess.com"]
[Source "ChessBase"]
[SourceQuality "1"]
[TimeControl "40/5400+30:1800+30"]

1. e4 {[%emt 0:07:33]} e5 {[%emt 0:00:00]} 2. Nf3 {[%emt 0:00:17]} Nc6 {[%emt 0:00:07]} 3. Bc4 {[%emt 0:00:50]} Bc5 {[%emt 0:00:28]} 4. c3 {[%emt 0:00:11]} Nf6 {[%emt 0:00:54]} 5. d4 {[%emt 0:00:29]} exd4 {[%emt 0:00:37]} 6. cxd4 {[%emt 0:00:24]} Bb4+ {[%emt 0:00:30]} 7. Bd2 {[%emt 0:00:14]} Bxd2+ {[%emt 0:03:12]} 8. Nbxd2 {[%emt 0:01:38]} O-O {[%emt 0:01:53]} 9. e5 {[%emt 0:04:34]} Ne8 {[%emt 0:01:06]} 10. O-O {[%emt 0:10:17]} d6 {[%emt 0:00:42]} 11. Qe2 {[%emt 0:03:11]} dxe5 {[%emt 0:03:01]} 12. dxe5 {[%emt 0:00:27]} Nd4 {[%emt 0:03:32]} 13. Qe4 {[%emt 0:10:46]} Nxf3+ {[%emt 0:07:24]} 14. Nxf3 {[%emt 0:00:15]} c6 {[%emt 0:02:50]} 15. Rad1 {[%emt 0:03:01]} Qe7 {[%emt 0:01:18]} 16. Rfe1 {[%emt 0:05:25]} Be6 {[%emt 0:01:59]} 17. Bxe6 {[%emt 0:07:38]} fxe6 {[%emt 0:01:52]} 18. h4 {[%emt 0:09:29]} Nc7 {[%emt 0:08:18]} 19. Rd6 {[%emt 0:03:05]} h6 {[%emt 0:13:37]} 20. Red1 {[%emt 0:02:14]} Nd5 {[%emt 0:12:52]} 21. Qg6 {[%emt 0:15:16]} Rae8 {[%emt 0:01:58]} 22. Nd4 {[%emt 0:06:43]} Qf7 {[%emt 0:00:46]} 23. Qxf7+ {[%emt 0:01:49]} Kxf7 {[%emt 0:00:18]} 24. Rd3 {[%emt 0:01:19]} Nc7 {[%emt 0:04:04]} 25. Rd7+ {[%emt 0:01:21]} Re7 {[%emt 0:01:52]} 26. Rxc7 {[%emt 0:02:19]} Rd8 {[%emt 0:06:24]} 27. Rxe7+ {[%emt 0:00:57]} Kxe7 {[%emt 0:00:03]} 28. Rd2 {[%emt 0:00:14]} Ke8 {[%emt 0:22:23]} 1-0

[Event "FIN-ch Seniors 50 2020"]
[Site "Helsinki"]
[Date "2020.09.26"]
[Round "4.4"]
[White "Vainikainen, Tommi"]
[Black "Salmenkivi, Eero"]
[Result "0-1"]
[ECO "B22"]
[WhiteElo "1850"]
[BlackElo "2053"]
[Annotator "NA"]
[PlyCount "82"]
[EventDate "2020.09.24"]
[EventType "tourn"]
[EventCountry "FIN"]
[SourceTitle "playchess.com"]
[Source "ChessBase"]
[SourceQuality "1"]
[TimeControl "40/5400+30:1800+30"]

1. e4 {[%emt 1:30:30]} c5 {[%emt 1:30:30]} 2. c3 {[%emt 0:00:30]} Nf6 {[%emt 0:00:30]} 3. e5 {[%emt 0:00:30]} Nd5 4. d4 {[%emt 0:00:30]} cxd4 {[%emt 0:01:00]} 5. cxd4 {[%emt 0:00:30]} Nc6 {[%emt 0:00:30]} 6. Nf3 {[%emt 0:00:30]} d6 {[%emt 0:00:30]} 7. Bc4 {[%emt 0:00:30]} Nb6 {[%emt 0:00:30]} 8. Bxf7+ {[%emt 0:00:30]} Kxf7 {[%emt 0:00:30]} 9. Ng5+ {[%emt 0:00:30]} Kg8 {[%emt 0:00:30]} 10. e6 {[%emt 0:00:30]} Qe8 {[%emt 0:00:30]} 11. Qf3 {[%emt 0:00:30]} Nd8 {[%emt 0:00:30]} 12. d5 {[%emt 0:00:30]} h6 {[%emt 0:00:30]} 13. Nh3 {[%emt 0:00:30]} Nxd5 {[%emt 0:00:30]} 14. Qxd5 {[%emt 0:00:30]} Bxe6 {[%emt 0:00:30]} 15. Qe4 {[%emt 0:00:30]} Qf7 {[%emt 0:00:30]} 16. Nc3 {[%emt 0:00:30]} Nc6 {[%emt 0:00:30]} 17. Nf4 {[%emt 0:00:30]} Bf5 {[%emt 0:00:30]} 18. Qa4 {[%emt 0:00:30]} e5 {[%emt 0:00:30]} 19. Nfe2 {[%emt 0:00:30]} d5 {[%emt 0:00:30]} 20. O-O {[%emt 0:00:30]} a6 {[%emt 0:00:30]} 21. Ng3 {[%emt 0:00:30]} Bd3 {[%emt 0:00:30]} 22. Rd1 {[%emt 0:00:30]} Nb4 {[%emt 0:00:30]} 23. Rxd3 {[%emt 0:00:30]} Nxd3 {[%emt 0:00:30]} 24. Qc2 {[%emt 0:00:30]} Bc5 {[%emt 0:00:30]} 25. Nd1 {[%emt 0:00:30]} e4 {[%emt 0:00:30]} 26. Be3 {[%emt 0:00:30]} Bxe3 {[%emt 0:00:30]} 27. Nxe3 {[%emt 0:00:30]} Kh7 {[%emt 0:00:30]} 28. f3 {[%emt 0:00:30]} Ne5 {[%emt 0:00:30]} 29. fxe4 {[%emt 0:00:30]} d4 {[%emt 0:00:30]} 30. Rf1 {[%emt 0:00:30]} Qe6 {[%emt 0:00:30]} 31. Nd5 {[%emt 0:00:30]} Rac8 {[%emt 0:00:30]} 32. Qd2 {[%emt 0:00:30]} d3 {[%emt 0:00:30]} 33. Nc3 {[%emt 0:00:30]} g6 {[%emt 0:00:30]} 34. Rf4 {[%emt 0:00:30]} Rcf8 {[%emt 0:00:30]} 35. Nd5 {[%emt 0:00:30]} Kg7 {[%emt 0:00:30]} 36. Qc3 {[%emt 0:00:30]} Rc8 {[%emt 0:00:30]} 37. Qd4 {[%emt 0:00:30]} Rc4 {[%emt 0:00:30]} 38. Qe3 {[%emt 0:00:30]} Qd6 {[%emt 0:00:30]} 39. Nh5+ {[%emt 0:00:30]} gxh5 {[%emt 0:00:30]} 40. Qg3+ {[%emt 0:00:30]} Qg6 {[%emt 0:00:30]} 41. Rg4 {[%emt 0:30:30]} Nxg4 {[%emt 0:30:30]} 0-1

[Event "FIN-ch Seniors 50 2020"]
[Site "Helsinki"]
[Date "2020.09.26"]
[Round "5.1"]
[White "Salmenkivi, Eero"]
[Black "Kumpulainen, Jari"]
[Result "1/2-1/2"]
[ECO "C02"]
[WhiteElo "2053"]
[BlackElo "1912"]
[Annotator "ChessBase"]
[PlyCount "61"]
[EventDate "2020.09.24"]
[EventType "tourn"]
[EventCountry "FIN"]
[SourceTitle "playchess.com"]
[Source "ChessBase"]
[SourceQuality "1"]
[TimeControl "40/5400+30:1800+30"]

1. e4 {[%emt 0:00:00]} c5 {[%emt 0:00:00]} 2. c3 {[%emt 0:00:00]} Nc6 {[%emt 0:00:00]} 3. d4 {[%emt 0:00:00]} cxd4 {[%emt 0:00:56]} 4. cxd4 {[%emt 0:00:00]} e6 {[%emt 0:00:13]} 5. Nf3 {[%emt 0:04:39]} d5 {[%emt 0:02:29]} 6. e5 {[%emt 0:00:39]} Nge7 {[%emt 0:00:32]} 7. Na3 {[%emt 0:01:08]} Ng6 {[%emt 0:01:50]} 8. Nc2 {[%emt 0:00:15]} Be7 {[%emt 0:00:38]} 9. Bd3 {[%emt 0:01:58]} Bd7 {[%emt 0:01:17]} 10. a3 {[%emt 0:01:05]} O-O {[%emt 0:01:57]} 11. h4 {[%emt 0:01:18]} f5 {[%emt 0:05:39]} 12. exf6 {[%emt 0:11:28]} Bxf6 {[%emt 0:02:19]} 13. Bxg6 {[%emt 0:00:23]} hxg6 {[%emt 0:00:23]} 14. Qd3 {[%emt 0:04:10]} Be8 {[%emt 0:03:08]} 15. Bg5 {[%emt 0:06:34]} Rc8 {[%emt 0:07:01]} 16. Rd1 {[%emt 0:06:43]} Qc7 {[%emt 0:10:04]} 17. Ne3 {[%emt 0:01:54]} Qa5+ {[%emt 0:01:36]} 18. b4 {[%emt 0:12:35]} Qc7 {[%emt 0:09:45]} 19. Ng4 {[%emt 0:08:53]} Ne7 {[%emt 0:06:54]} 20. Nge5 {[%emt 0:09:53]} Qc3+ {[%emt 0:02:42]} 21. Qxc3 {[%emt 0:01:01]} Rxc3 {[%emt 0:00:12]} 22. Bc1 {[%emt 0:00:11]} Ba4 {[%emt 0:04:22]} 23. Bb2 {[%emt 0:00:45]} Rc2 {[%emt 0:01:17]} 24. Rd2 {[%emt 0:00:12]} Rfc8 {[%emt 0:05:59]} 25. Ke2 {[%emt 0:05:41]} Nf5 {[%emt 0:08:00]} 26. Rhd1 {[%emt 0:01:26]} Bxe5 {[%emt 0:12:45]} 27. dxe5 {[%emt 0:20:39]} Rxb2 {[%emt 0:11:32]} 28. Rxb2 {[%emt 0:00:30]} Bxd1+ 29. Kxd1 {[%emt 0:00:30]} Rc3 {[%emt 0:01:00]} 30. Ra2 {[%emt 0:00:30]} Rc8 {[%emt 0:00:30]} 31. Rd2 1/2-1/2

[Event "FIN-ch Seniors 50 2020"]
[Site "Helsinki"]
[Date "2020.09.26"]
[Round "5.2"]
[White "Salmi, Ilkka"]
[Black "Vainikainen, Tommi"]
[Result "0-1"]
[ECO "C55"]
[WhiteElo "1870"]
[BlackElo "1850"]
[Annotator "NA"]
[PlyCount "84"]
[EventDate "2020.09.24"]
[EventType "tourn"]
[EventCountry "FIN"]
[SourceTitle "playchess.com"]
[Source "ChessBase"]
[SourceQuality "1"]
[TimeControl "40/5400+30:1800+30"]

1. e4 {[%emt 0:00:00]} e5 {[%emt 0:00:00]} 2. Nf3 {[%emt 1:31:00]} Nf6 {[%emt 0:00:00]} 3. Nc3 {[%emt 0:00:00]} Nc6 {[%emt 0:00:13]} 4. Bc4 {[%emt 0:00:00]} Nxe4 {[%emt 0:00:16]} 5. Bxf7+ {[%emt 0:00:00]} Kxf7 {[%emt 0:00:09]} 6. Nxe4 {[%emt 0:00:00]} d5 {[%emt 0:00:25]} 7. Neg5+ {[%emt 0:00:00]} Kg8 {[%emt 0:00:17]} 8. d3 {[%emt 0:00:00]} h6 {[%emt 0:00:55]} 9. Nh3 {[%emt 0:00:00]} Bg4 {[%emt 0:01:29]} 10. Be3 {[%emt 0:00:00]} Bd6 {[%emt 0:01:05]} 11. Qc1 {[%emt 0:00:00]} Qf6 {[%emt 0:04:36]} 12. Nfg1 {[%emt 0:00:00]} Re8 {[%emt 0:04:24]} 13. f3 {[%emt 0:00:00]} Bh5 {[%emt 0:12:12]} 14. Qd2 {[%emt 0:00:00]} e4 {[%emt 0:03:14]} 15. O-O-O {[%emt 0:00:00]} d4 {[%emt 0:01:13]} 16. dxe4 {[%emt 0:00:00]} dxe3 {[%emt 0:00:36]} 17. Qxe3 {[%emt 0:00:00]} Bf7 {[%emt 0:03:04]} 18. Ne2 {[%emt 0:00:00]} Be5 {[%emt 0:02:09]} 19. Qa3 {[%emt 0:00:00]} Kh7 {[%emt 0:02:00]} 20. f4 {[%emt 0:00:00]} Bd6 {[%emt 0:01:24]} 21. Qa4 {[%emt 0:09:30]} Qe6 {[%emt 1:00:49]} 22. e5 {[%emt 0:00:00]} Bc5 {[%emt 0:00:00]} 23. Kb1 {[%emt 0:00:00]} Nb4 {[%emt 0:00:00]} 24. Nc3 {[%emt 0:00:00]} Rd8 {[%emt 0:00:00]} 25. a3 {[%emt 0:00:00]} Na2 {[%emt 0:00:00]} 26. Ne4 {[%emt 0:00:00]} Be7 {[%emt 0:00:00]} 27. b3 {[%emt 0:00:00]} Bg6 {[%emt 0:00:00]} 28. Kxa2 {[%emt 0:00:00]} b5 {[%emt 0:00:00]} 29. Qb4 {[%emt 0:00:00]} a5 {[%emt 0:00:00]} 30. Nc5 {[%emt 0:00:00]} Qb6 {[%emt 0:00:00]} 31. Qc3 {[%emt 0:00:00]} Bxc5 {[%emt 0:00:00]} 32. Qb2 {[%emt 0:00:00]} b4 {[%emt 0:00:00]} 33. Rxd8 {[%emt 0:00:00]} Rxd8 {[%emt 0:00:00]} 34. g4 {[%emt 0:00:00]} Bd4 {[%emt 0:00:00]} 35. Qb1 {[%emt 0:00:00]} Be4 {[%emt 0:00:00]} 36. Re1 {[%emt 0:00:34]} Qc6 {[%emt 0:00:00]} 37. Re2 {[%emt 0:01:17]} Bc3 {[%emt 0:00:00]} 38. g5 {[%emt 0:02:22]} Bd2 {[%emt 0:00:00]} 39. Rxe4 {[%emt 0:02:16]} Qxe4 {[%emt 0:00:00]} 40. c4 {[%emt 0:00:39]} Qxb1+ {[%emt 0:00:00]} 41. Kxb1 {[%emt 0:30:10]} Be3 {[%emt 0:21:22]} 42. e6 {[%emt 0:01:12]} Kg6 {[%emt 0:00:32]} 0-1

[Event "FIN-ch Seniors 50 2020"]
[Site "Helsinki"]
[Date "2020.09.26"]
[Round "5.3"]
[White "Salimaki, Janne"]
[Black "Hamalainen, Sami"]
[Result "1/2-1/2"]
[ECO "B33"]
[WhiteElo "2092"]
[BlackElo "2182"]
[Annotator "ChessBase"]
[PlyCount "31"]
[EventDate "2020.09.24"]
[EventType "tourn"]
[EventCountry "FIN"]
[SourceTitle "playchess.com"]
[Source "ChessBase"]
[SourceQuality "1"]
[TimeControl "40/5400+30:1800+30"]

1. d4 e6 2. Nf3 c5 3. e4 cxd4 4. Nxd4 Nf6 5. Nc3 Nc6 6. Ndb5 d6 7. Bf4 e5 8. Bg5 a6 9. Na3 b5 10. Nd5 Be7 11. Bxf6 Bxf6 12. c3 O-O 13. Nc2 Bg5 14. a4 bxa4 15. Rxa4 Bb7 16. Bd3 1/2-1/2

[Event "FIN-ch Seniors 50 2020"]
[Site "Helsinki"]
[Date "2020.09.26"]
[Round "5.4"]
[White "Lyly, Seppo"]
[Black "Piho, Juha"]
[Result "1/2-1/2"]
[ECO "B38"]
[WhiteElo "1880"]
[BlackElo "1915"]
[Annotator "ChessBase"]
[PlyCount "41"]
[EventDate "2020.09.24"]
[EventType "tourn"]
[EventCountry "FIN"]
[SourceTitle "playchess.com"]
[Source "ChessBase"]
[SourceQuality "1"]
[TimeControl "40/5400+30:1800+30"]

1. e4 {[%emt 1:30:30]} c5 {[%emt 1:30:30]} 2. Nf3 {[%emt 0:00:30]} g6 {[%emt 0:00:30]} 3. d4 {[%emt 0:00:30]} cxd4 {[%emt 0:00:30]} 4. Nxd4 {[%emt 0:00:30]} Bg7 {[%emt 0:00:30]} 5. c4 {[%emt 0:00:30]} Nc6 {[%emt 0:00:30]} 6. Be3 {[%emt 0:00:30]} Nf6 {[%emt 0:00:30]} 7. Nc3 {[%emt 0:00:30]} O-O {[%emt 0:00:30]} 8. Be2 {[%emt 0:00:30]} d6 {[%emt 0:00:30]} 9. f3 {[%emt 0:00:30]} Nxd4 {[%emt 0:00:30]} 10. Bxd4 {[%emt 0:00:30]} Be6 {[%emt 0:00:30]} 11. Rc1 {[%emt 0:00:30]} a6 {[%emt 0:00:30]} 12. Qd2 {[%emt 0:00:30]} Rc8 {[%emt 0:00:30]} 13. b3 {[%emt 0:00:30]} Nd7 {[%emt 0:00:30]} 14. Be3 {[%emt 0:00:30]} f5 {[%emt 0:00:30]} 15. exf5 {[%emt 0:00:30]} gxf5 {[%emt 0:00:30]} 16. f4 {[%emt 0:00:30]} Kh8 {[%emt 0:00:30]} 17. O-O {[%emt 0:00:30]} Nf6 {[%emt 0:00:30]} 18. Bd4 {[%emt 0:00:30]} Nd7 {[%emt 0:00:30]} 19. Be3 {[%emt 0:00:30]} Nf6 {[%emt 0:00:30]} 20. Bd4 {[%emt 0:00:30]} Nd7 {[%emt 0:00:30]} 21. Be3 {[%emt 0:00:30]} 1/2-1/2

[Event "FIN-ch Seniors 50 2020"]
[Site "Helsinki"]
[Date "2020.09.27"]
[Round "6.1"]
[White "Kumpulainen, Jari"]
[Black "Piho, Juha"]
[Result "1/2-1/2"]
[ECO "B07"]
[WhiteElo "1912"]
[BlackElo "1915"]
[Annotator "ChessBase"]
[PlyCount "22"]
[EventDate "2020.09.24"]
[EventType "tourn"]
[EventCountry "FIN"]
[SourceTitle "playchess.com"]
[Source "ChessBase"]
[SourceQuality "1"]
[TimeControl "40/5400+30:1800+30"]

1. e4 {[%emt 0:00:37]} g6 {[%emt 0:00:00]} 2. Bc4 {[%emt 0:01:49]} Bg7 {[%emt 0:01:22]} 3. Nc3 {[%emt 0:00:51]} d6 {[%emt 0:01:32]} 4. d4 {[%emt 0:02:14]} c6 {[%emt 0:01:09]} 5. Nge2 {[%emt 0:00:41]} Nf6 {[%emt 0:07:27]} 6. f3 {[%emt 0:01:23]} Qc7 {[%emt 0:05:44]} 7. Be3 {[%emt 0:05:13]} b5 {[%emt 0:01:18]} 8. Bd3 {[%emt 0:02:51]} b4 {[%emt 0:00:42]} 9. Na4 {[%emt 0:01:28]} Nbd7 {[%emt 0:03:08]} 10. c4 {[%emt 0:04:47]} e5 {[%emt 0:03:53]} 11. d5 {[%emt 1:13:36]} Bf8 {[%emt 1:09:15]} 1/2-1/2

[Event "FIN-ch Seniors 50 2020"]
[Site "Helsinki"]
[Date "2020.09.27"]
[Round "6.2"]
[White "Hamalainen, Sami"]
[Black "Lyly, Seppo"]
[Result "1/2-1/2"]
[ECO "C54"]
[WhiteElo "2182"]
[BlackElo "1880"]
[Annotator "ChessBase"]
[PlyCount "63"]
[EventDate "2020.09.24"]
[EventType "tourn"]
[EventCountry "FIN"]
[SourceTitle "playchess.com"]
[Source "ChessBase"]
[SourceQuality "1"]
[TimeControl "40/5400+30:1800+30"]

1. e4 {[%emt 0:01:19]} e5 {[%emt 0:00:00]} 2. Nf3 {[%emt 0:00:06]} Nc6 {[%emt 0:00:00]} 3. Bc4 {[%emt 0:00:29]} Bc5 {[%emt 0:00:22]} 4. c3 {[%emt 0:00:06]} Qe7 {[%emt 0:01:30]} 5. O-O {[%emt 0:01:31]} Nf6 {[%emt 1:30:38]} 6. d3 {[%emt 0:10:22]} d6 {[%emt 0:00:00]} 7. b4 {[%emt 0:01:45]} Bb6 {[%emt 0:00:00]} 8. a4 {[%emt 0:00:12]} a5 {[%emt 0:00:00]} 9. b5 {[%emt 0:01:49]} Nd8 {[%emt 0:00:00]} 10. Ba3 {[%emt 0:04:40]} O-O {[%emt 0:00:00]} 11. Nbd2 {[%emt 0:07:07]} Bg4 {[%emt 0:00:00]} 12. h3 {[%emt 0:01:22]} Bh5 {[%emt 0:00:00]} 13. Qb3 {[%emt 0:01:00]} Qd7 {[%emt 0:00:00]} 14. d4 {[%emt 0:02:11]} Re8 {[%emt 0:00:00]} 15. Rfe1 {[%emt 0:01:31]} Bxf3 {[%emt 0:00:00]} 16. Nxf3 {[%emt 0:01:02]} exd4 {[%emt 0:00:00]} 17. e5 {[%emt 0:01:57]} d5 {[%emt 0:00:00]} 18. exf6 dxc4 19. Rxe8+ {[%emt 0:18:07]} Qxe8 {[%emt 0:00:00]} 20. Qxc4 {[%emt 0:00:02]} dxc3 {[%emt 0:00:00]} 21. Qg4 {[%emt 0:15:58]} Ne6 {[%emt 0:00:00]} 22. Re1 {[%emt 0:28:24]} g6 23. Ng5 {[%emt 0:00:00]} Qd7 {[%emt 0:00:00]} 24. Nxe6 {[%emt 0:00:00]} fxe6 {[%emt 0:00:00]} 25. Qc4 {[%emt 0:00:00]} Kf7 {[%emt 0:00:00]} 26. Qxc3 {[%emt 0:00:00]} Bd4 {[%emt 0:00:00]} 27. Qf3 {[%emt 0:00:00]} c5 {[%emt 0:00:00]} 28. bxc6 {[%emt 0:00:00]} bxc6 {[%emt 0:00:00]} 29. Rd1 {[%emt 0:00:00]} e5 {[%emt 0:00:00]} 30. Qb3+ {[%emt 0:00:00]} Kxf6 {[%emt 0:00:00]} 31. Rd3 {[%emt 0:01:17]} Kg7 {[%emt 0:00:00]} 32. Kh1 {[%emt 0:01:27]} 1/2-1/2